Cogmind - Beta 10.2 @@@ ROGUE MODE // 2020.12.16 @ 05:20:06 Player: WeirdFoe Result: Destroyed by S-10 Pest with Light Assault Rifle Performance ------------- Evolutions (1) 500 Regions Visited (3) 600 Robots Destroyed (2) 10 Value Destroyed (20) 20 Prototype IDs (0) 0 Alien Tech Used (0) 0 Bonus (200) 200 TOTAL SCORE: 1330 Bonus ------- Pacifist 200 Cogmind --------- Core Integrity 0/400 Matter 443/450 Energy 100/100 System Corruption 0% Temperature Cool (0) Movement Core (600) Ox11 Location -9/Materials Parts ------- > --- POWER (1) -------- (None) > --- PROPULSION (2) --- (None) > --- UTILITY (4) ------ Large Storage Unit Large Storage Unit Large Matter Pod Propulsion Shielding > --- WEAPON (2) ------- (None) > --- INVENTORY (16) --- Ion Engine Aluminum Leg Wheel Compact Matter Pod (44) Compact Matter Pod (0) Peak State ------------ > --- POWER ------------ Ion Engine > --- PROPULSION ------- Aluminum Leg Aluminum Leg > --- UTILITY ---------- Large Storage Unit Large Storage Unit Large Matter Pod Propulsion Shielding > --- WEAPON ----------- Mining Laser > --- INVENTORY -------- Ion Engine Aluminum Leg Wheel Medium Storage Unit [Rating: 8] Favorites ----------- Power Ion Engine Engine Ion Engine Propulsion Wheel Leg Aluminum Leg Wheel Wheel Utility Large Storage Unit Storage Large Storage Unit Processor Signal Interpreter Protection Propulsion Shielding Weapon Mining Laser Ballistic Gun Light Assault Rifle Special Weapon Mining Laser Build | -11 -10 -10 -9 ------- Run | Scr Mat Min Mat Slots Evolved 2 | . . . 2 Power . | . . . . Propulsion . | . . . . Utility 2 | . . . 2 Weapon . | . . . . Parts Attached 14 | 4 3 1 6 Power 1 | 1 . . . Engine 1 | 1 . . . Core . | . . . . Reactor . | . . . . Propulsion 4 | 2 . . 2 Treads . | . . . . Leg 2 | . . . 2 Wheel 2 | 2 . . . Hover . | . . . . Flight . | . . . . Utility 7 | 1 3 1 2 Device . | . . . . Storage 4 | 1 1 . 2 Processor 1 | . 1 . . Hackware . | . . . . Protection 2 | . 1 1 . Artifact . | . . . . Weapon 2 | . . . 2 Energy Gun . | . . . . Energy Cannon . | . . . . Ballistic Gun 1 | . . . 1 Ballistic Cannon . | . . . . Launcher . | . . . . Special Weapon 1 | . . . 1 Impact Weapon . | . . . . Slashing Weapon . | . . . . Piercing Weapon . | . . . . Special Melee Weapon . | . . . . Unidentified Prototypes . | . . . . Parts Lost 5 | . . . 5 Power 1 | . . . 1 Propulsion 2 | . . . 2 Utility . | . . . . Weapon 2 | . . . 2 Highest Loss Streak 5 | . . . 5 Average Slot Usage (%) 66 | . 63 57 77 Engine 11 | . 14 14 8 Leg 6 | . . . 18 Wheel 11 | . 23 14 . Storage 21 | . 14 14 33 Processor 2 | . 7 . . Protection 9 | . 4 14 11 Special Weapon 2 | . . . 6 Naked Turns . | . . . . Heaviest Build 42 | 9 22 22 42 Greatest Support 20 | 20 20 10 20 Greatest Overweight (x) 11 | 1 2 2 11 Average Overweight (x) 1 | . . 2 2 Largest Inventory Capacity 16 | 6 10 10 16 Average Capacity 11 | 5 8 10 15 Most Carried 10 | 3 10 9 8 Average Carried 6 | 1 6 8 4 Final Capacity 16 | 6 10 10 16 Final Carried 10 | 3 10 8 5 Class Distribution -------------------- 100% | Mutant Dominant Class ---------------- Mutant | -10/Materials Mutant | -10/Mines Mutant | -9/Materials Resources | -11 -10 -10 -9 ----------- Run | Scr Mat Min Mat Matter Collected 476 | 197 . 23 256 Remotely . | . . . . Salvage Created 40 | . . . 40 Parts 5 | . . . 5 Haulers Intercepted . | . . . . Recyclers Shooed . | . . . . Parts Field Recycled . | . . . . Retrieved Matter . | . . . . Parts Self-Destructed . | . . . . Prevented . | . . . . Kills | -11 -10 -10 -9 ------- Run | Scr Mat Min Mat Combat Hostiles Destroyed 2 | . . . 2 Melee 2 | . . . 2 Classes Destroyed 1 | . . . 1 Swarmer 2 | . . . 2 Best Kill Streak 1 | . . . 1 Combat Bots Only 1 | . . . 1 Max Kills in Single Turn 1 | . . . 1 Gunslinging . | . . . . Exploded . | . . . . Melee 1 | . . . 1 Uniques/NPCs Destroyed . | . . . . Combat | -11 -10 -10 -9 -------- Run | Scr Mat Min Mat Damage Taken 1149 | . 18 62 1069 Core 431 | . . 30 401 Absorbed by Shields . | . . . . Core Remaining (%) 94 | 100 . 88 . Volleys Fired 2 | . . . 2 Largest 1 | . . . 1 Hottest 20 | . . . 20 Shots Fired 2 | . . . 2 Gun 2 | . . . 2 Cannon . | . . . . Launcher . | . . . . Special . | . . . . Kinetic 2 | . . . 2 Thermal . | . . . . Explosive . | . . . . Electromagnetic . | . . . . Robot Hit Streak . | . . . . Robot Miss Streak 2 | . . . 2 Penetration Max . | . . . . Secondary Targets . | . . . . Shots Hit Robots . | . . . . Core Hits 5 | . . . 5 Critical Hits . | . . . . Critical Kills . | . . . . Critical Parts Destroyed . | . . . . Melee Attacks . | . . . . Impact . | . . . . Slashing . | . . . . Piercing . | . . . . Sneak Attacks . | . . . . Combat Hostiles . | . . . . Follow-up Attacks . | . . . . Damage Inflicted 39 | . . . 39 Guns . | . . . . Cannons . | . . . . Explosions . | . . . . Melee . | . . . . Ramming 39 | . . . 39 Kinetic . | . . . . Thermal . | . . . . Explosive . | . . . . Electromagnetic . | . . . . Impact . | . . . . Slashing . | . . . . Piercing . | . . . . Highest Corruption . | . . . . Average Corruption . | . . . . Corruption Purged . | . . . . Overload Shots . | . . . . Overflow Damage . | . . . . Projectiles . | . . . . Explosions . | . . . . Melee . | . . . . Knockbacks . | . . . . Impact . | . . . . Kinetic . | . . . . Secondary . | . . . . Self-Inflicted Damage 10 | . . . 10 Shots . | . . . . Rammed 6 | . . . 6 Targets Rammed 11 | . . . 11 Kicked 5 | . . . 5 Crushed . | . . . . Highest Temperature 1 | . . . 1 Average Temperature 1 | . . . 1 Received Heat Transfer 128 | . 9 20 99 Siege Activations . | . . . . Robots Corrupted . | . . . . Combat Hostiles . | . . . . Parts Fried . | . . . . Impact Corruptions . | . . . . Robots Melted . | . . . . Combat Hostiles . | . . . . Parts Melted . | . . . . Heat Transferred . | . . . . Parts Sabotaged . | . . . . Parts Stolen . | . . . . Parts Stripped . | . . . . Power Chain Reactions . | . . . . Missiles Intercepted . | . . . . Alert | -11 -10 -10 -9 ------- Run | Scr Mat Min Mat Peak Influence 60 | . 45 17 60 Initial 17 | . . 17 6 Average 13 | . 12 17 14 Maximum Alert Level . | . . . . Low Security (%) 100 | 100 100 100 100 Level 1 . | . . . . Level 2 . | . . . . Level 3 . | . . . . Level 4 . | . . . . Level 5 . | . . . . High Security . | . . . . Max Security . | . . . . Squads Dispatched 2 | . . . 2 Investigation . | . . . . Extermination . | . . . . Reinforcement 2 | . . . 2 Assault . | . . . . Garrison . | . . . . Intercept . | . . . . Construction Impeded . | . . . . Haulers Reinforced . | . . . . Stealth | -11 -10 -10 -9 --------- Run | Scr Mat Min Mat Distress Signals . | . . . . Communications Jammed . | . . . . Distress Signals . | . . . . Times Spotted 32 | . 5 13 14 Peak Tracking Total 13 | . 3 13 12 Tactical Retreats 2 | . 1 . 1 Traps | -11 -10 -10 -9 ------- Run | Scr Mat Min Mat Traps Triggered . | . . . . Indirectly . | . . . . Trap Hack Attempts . | . . . . Triggered . | . . . . Disarmed . | . . . . Reprogrammed . | . . . . Reused . | . . . . Traps Extracted . | . . . . Installed . | . . . . Triggered . | . . . . Machines | -11 -10 -10 -9 ---------- Run | Scr Mat Min Mat Machines Disabled . | . . . . Max in Single Turn . | . . . . Machines Sabotaged . | . . . . Garrisons Compromised . | . . . . Overloaded Fab Kills . | . . . . Fab Network Shutdowns . | . . . . Hacking | -11 -10 -10 -9 --------- Run | Scr Mat Min Mat Machines Accessed 1 | . . 1 . Terminals 1 | . . 1 . Fabricators . | . . . . Repair Stations . | . . . . Recycling Units . | . . . . Scanalyzers . | . . . . Garrison Access . | . . . . Total Hacks 1 | . . 1 . Successful 1 | . . 1 . Failed . | . . . . Catastrophic . | . . . . Database Lockouts . | . . . . Manual . | . . . . Terminals 1 | . . 1 . Fabricators . | . . . . Repair Stations . | . . . . Recycling Units . | . . . . Scanalyzers . | . . . . Garrison Access . | . . . . Terminal Hacks 1 | . . 1 . Record 1 | . . 1 . Fabricator Hacks . | . . . . Repair Station Hacks . | . . . . Recycling Unit Hacks . | . . . . Scanalyzer . | . . . . Garrison Access Hacks . | . . . . Unauthorized Hacks . | . . . . Terminals . | . . . . Fabricators . | . . . . Repair Stations . | . . . . Recycling Units . | . . . . Scanalyzers . | . . . . Garrison Access . | . . . . Data Cores Recovered . | . . . . Used . | . . . . Hacking Detections . | . . . . Full Trace Events . | . . . . Feedback Events . | . . . . Feedback Blocked . | . . . . Robot Schematics Acquired . | . . . . Robots Built . | . . . . Matter . | . . . . Time . | . . . . Total Robot Build Rating . | . . . . Part Schematics Acquired . | . . . . Parts Built . | . . . . Matter . | . . . . Time . | . . . . Total Part Build Rating . | . . . . Parts Repaired . | . . . . Time . | . . . . Parts Recycled . | . . . . Recycled Matter . | . . . . Retrieved Matter . | . . . . Retrieved Components . | . . . . Parts Scanalyzed . | . . . . Part Schematics Acquired . | . . . . Parts Damaged . | . . . . Bothacking | -11 -10 -10 -9 ------------ Run | Scr Mat Min Mat Used RIF Installer . | . . . . Robots Hacked . | . . . . Non-combat . | . . . . Combat . | . . . . Robot Hacks Applied . | . . . . Relay Couplers Released . | . . . . Robots Rewired . | . . . . Allies Hacked . | . . . . Hacks Repelled . | . . . . Allies | -11 -10 -10 -9 -------- Run | Scr Mat Min Mat Total Allies . | . . . . Largest Group . | . . . . Highest-Rated Group . | . . . . Highest-Rated Ally . | . . . . Total Orders . | . . . . Ally Attacks . | . . . . Total Damage . | . . . . Kills . | . . . . Allies Corrupted . | . . . . Allies Melted . | . . . . Intel | -11 -10 -10 -9 ------- Run | Scr Mat Min Mat Robot Analysis Total . | . . . . Derelict Logs Recovered . | . . . . Drone Launches . | . . . . Drone Recoveries . | . . . . Exploration | -11 -10 -10 -9 ------------- Run | Scr Mat Min Mat Turns Passed 462 | 34 139 129 160 Spaces Moved 353 | 32 133 121 67 Core 10 | 7 . . 3 Treads . | . . . . Legs 64 | . . . 64 Wheels 279 | 25 133 121 . Hover . | . . . . Flight . | . . . . Fastest Speed 50 | 50 80 100 150 Average Speed 112 | 76 89 100 196 Slowest Speed 600 | 100 100 100 600 Overloaded Moves . | . . . . Propulsion Burnouts . | . . . . Robots Hopped . | . . . . Cave-ins Triggered . | . . . . Exploration Rate (%) 21 | 4 29 37 16 Regions Visited 3 Branch Regions 1 Pre-discovered Areas . | . . . . Known Exits Taken 1 | . 1 . . Unknown Exits Taken 2 | 1 . 1 . Scrap Searched 1 | . . 1 . Spaces Dug . | . . . . Terrain Destroyed . | . . . . Melee . | . . . . Projectile . | . . . . AOE . | . . . . Terrain Rammed . | . . . . Walls Destroyed . | . . . . Machines Disabled . | . . . . Actions | -11 -10 -10 -9 --------- Run | Scr Mat Min Mat Total 410 | 39 152 129 90 Wait 14 | . 7 7 . Move 350 | 31 132 120 67 Hop . | . . . . Pick Up 13 | 4 7 . 2 Fast Attach 5 | 3 1 . 1 Attach 6 | 1 . . 5 Detach 2 | . 1 . 1 Swap 3 | . 2 1 . Drop 4 | . 2 1 1 Fire 2 | . . . 2 Melee . | . . . . Ram . | . . . . Kick 11 | . . . 11 Crush . | . . . . Escape Stasis . | . . . . Rewire . | . . . . Trap . | . . . . Miscellaneous . | . . . . Route ------- -11/Scrapyard -10/Materials -10/Mines -9/Materials History --------- Turn | Location | Event 3 | -11/Scrapyard | Discovered new exit (range 16) 35 | -11/Scrapyard | Entered Materials 162 | -10/Materials | Discovered new exit (range 8) 173 | -10/Materials | Identified exit to Mines 174 | -10/Materials | Entered Mines 187 | -10/Mines | Met a Derelict bent on vengeance 221 | -10/Mines | Assembled infested the area 292 | -10/Mines | Discovered new exit (range 10) 303 | -10/Mines | Entered Materials 303 | -9/Materials | Evolved 2 slots: Utility x2 330 | -9/Materials | Build established: Mutant 449 | -9/Materials | Core integrity fell below 50% 458 | -9/Materials | Core integrity fell below 20% 463 | -9/Materials | Destroyed by S-10 Pest with Light Assault Rifle Last Messages --------------- 00422_ Ion Engine destroyed. 00426_ K-01 Serf collects debris. 00431_ Kicked S-10 Pest out of the way. 00434_ Slammed into S-10 Pest. 00437_ Kicked S-10 Pest out of the way. 00438_ Slammed into S-10 Pest. 00439_ Aluminum Leg destroyed. 00440_ Kicked S-10 Pest out of the way. 00440_ S-10 Pest destroyed. 00440_ K-01 Serf collects debris. 00442_ Slammed into S-10 Pest. 00442_ S-10 Pest destroyed. 00443_ Acquired 20 matter. 00444_ Aluminum Leg destroyed. 00445_ K-01 Serf collects debris. 00450_ Acquired Lgt. Assault Rifle. 00451_ S-10 Pest destroyed. 00452_ K-01 Serf collects debris. 00454_ Lgt. Assault Rifle destroyed. 00455_ K-01 Serf collects debris. Map ----- +----------------------------------------------------+ | ?????????????????????# # !#????? | | ?????????????????????########### #? ! #????? | | ???????????????????????????????# # =#????? | | ???????????????????????????????# # ? [!#????? | | ???????????????????????????????# +?? #????? | | ???????????????????????????????# #??? #????? | | ????????????????????############ #??? #????? | | ????????????????????# T ## ##???###/#????? | | ????????????????????# """ # ##### ???? | | ????????????????????# """ # #??? | | ????????????????????# """ + #??? | | ????????????????????# # #??? | | ????????????????????# [# ##### ???? | | ????????????????????# = ## ##????? ???? | | ????????????????????# ## #???????? ???? | | ????????????????????#######/#### #?????????????? | | ?????????????????##########[#### #?????????????? | | ?????????????????# # * #?????????????? | | ?????????????????# "" #= #?????????????? | | ?????????????????# "Y k g # #?????????????? | | ?????????????????# "" # #?????????????? | | ?????????????????# ** + +?????????????? | | ?????????????????# """ s%=# #?????????????? | | ?????????????????# """ ssY###/##+###?????????????? | | ?????????????????# """ s #?? ?????????????????? | | ?????????????????# @#???! #???????????????? | | ?????????????????##########???! #???????????????? | | ??????????????????????????????? #???????????????? | | ???????????????????????????????! #???????????????? | | ???????????????????????????????? /???????????????? | | ????????????????????????????????###??????????????? | | ?????????????????????????????????????????????????? | | ?????????????????????????????????????????????????? | | ?????????????????????????????????????????????????? | | ?????????????????????????????????????????????????? | | ?????????????????????????????????????????????????? | | ?????????????????????????????????????????????????? | | ?????????????????????????????????????????????????? | | ?????????????????????????????????????????????????? | | ?????????????????????????????????????????????????? | | ?????????????????????????????????????????????????? | | ?????????????????????????????????????????????????? | | ?????????????????????????????????????????????????? | | ?????????????????????????????????????????????????? | | ?????????????????????????????????????????????????? | | ?????????????????????????????????????????????????? | | ?????????????????????????????????????????????????? | | ?????????????????????????????????????????????????? | | ?????????????????????????????????????????????????? | | ?????????????????????????????????????????????????? | +----------------------------------------------------+ Best States ------------- Heat Dissipation 28 Energy Generation 10 Energy Capacity 250 Matter Stores 450 Matter Capacity 450 Sight Range 16 Terrain Scan Density 10 Propulsion Shielding 33 Evasion (%) 44 Item Schematics ----------------- None Robot Schematics ------------------ None Fabricated ------------ Nothing Alien Tech Used ----------------- None Achievements -------------- Slippery One Challenges ------------ None Game ------ Seed LongswordPointyDesublimator Manual? 0 Play Time 00:08:42 Cumulative 19.3 hours Start 2020.12.15 @ 16:26:24 End 2020.12.16 @ 05:20:06 Sessions 3 Manual Loads 0 Difficulty Rogue Special Mode None Game No. 55 Rogue 55 Adventurer 0 Explorer 0 Win Type - Total 0 Types 0/0/0/0/0/0/0/0/0 Lore% 20 Gallery% 31 Achievement% 21 Wizard Run 0 Options --------- ASCII 0 Keyboard 0 Movement Numpad Keybinds 0 Fullscreen 1 Font 18/Terminus Map View 76x50 Tactical HUD 1 Map Filters NONE Filters NONE Steam 1 RUN: e2fab8b9-daf7-48d1-818a-46d9af8be092